[Event "Klatovy Open-B 2024"]
[Site "Klatovy"]
[Date "2024.07.03"]
[Round "5.4"]
[White "Svejdar, Petr"]
[Black "Masek, Jan"]
[Result "0-1"]
[ECO "A85"]
[WhiteElo "1695"]
[BlackElo "1839"]
[Annotator "NA RC"]
[PlyCount "120"]
[EventDate "2024.06.21"]
[EventType "swiss"]
[EventCountry "CZE"]
[SourceTitle "playchess.com"]
[Source "ChessBase"]
[SourceQuality "1"]
[TimeControl "40/7200:0"]

1. d4 {[%emt 0:00:00]} f5 {[%emt 0:00:12]} 2. Nf3 {[%emt 0:00:00]} b6 {[%emt 0:00:00]} 3. e3 {[%emt 0:00:00]} Nf6 {[%emt 0:00:00]} 4. c4 {[%emt 0:00:00]} e6 {[%emt 0:00:00]} 5. Nc3 {[%emt 0:00:00]} Bb7 {[%emt 0:00:00]} 6. Bd3 {[%emt 0:00:00]} a5 {[%emt 0:00:00]} 7. a3 {[%emt 0:00:52]} Be7 {[%emt 0:00:00]} 8. O-O {[%emt 0:00:00]} O-O {[%emt 0:00:00]} 9. Re1 {[%emt 0:02:17]} Ne4 {[%emt 0:00:00]} 10. Ne2 {[%emt 0:06:51]} Qe8 {[%emt 0:06:12]} 11. Ng3 {[%emt 0:07:06]} d6 {[%emt 0:00:54]} 12. Nd2 {[%emt 0:04:06]} Nxd2 {[%emt 0:16:38]} 13. Bxd2 {[%emt 0:00:05]} Nd7 {[%emt 0:00:00]} 14. Bc3 {[%emt 0:06:48]} Nf6 {[%emt 0:00:18]} 15. d5 {[%emt 0:05:15]} g6 {[%emt 0:03:58]} 16. dxe6 {[%emt 0:05:17]} Bd8 {[%emt 0:00:27]} 17. Ne2 {[%emt 0:22:23]} Qxe6 {[%emt 0:03:54]} 18. Nf4 {[%emt 0:02:39]} Qf7 {[%emt 0:00:48]} 19. h3 {[%emt 0:08:32]} Ne4 {[%emt 0:01:45]} 20. Bxe4 {[%emt 0:02:10]} fxe4 {[%emt 0:02:29]} 21. Qd4 {[%emt 0:00:49]} Bf6 {[%emt 0:00:00]} 22. Qxf6 {[%emt 0:00:11]} Qxf6 {[%emt 1:22:25]} 23. Bxf6 {[%emt 0:00:00]} Rxf6 {[%emt 0:00:00]} 24. Nd5 {[%emt 0:00:00]} Rf7 {[%emt 0:00:00]} 25. a4 {[%emt 0:02:04]} Raf8 {[%emt 0:00:00]} 26. Re2 {[%emt 0:01:09]} Rb8 {[%emt 0:00:00]} 27. Rd1 {[%emt 0:04:28]} g5 {[%emt 0:00:00]} 28. Rd4 {[%emt 0:04:35]} Re8 {[%emt 0:00:00]} 29. b3 {[%emt 0:01:25]} Kf8 {[%emt 0:00:00]} 30. Rc2 {[%emt 0:05:51]} Re5 {[%emt 0:00:00]} 31. Nc3 {[%emt 0:05:58]} Ke7 {[%emt 0:00:00]} 32. Rcd2 {[%emt 0:03:39]} Ke6 {[%emt 0:00:00]} 33. Rd1 {[%emt 0:04:46]} Kd7 {[%emt 0:00:00]} 34. g3 {[%emt 0:01:24]} h5 {[%emt 0:00:00]} 35. Nb5 {[%emt 0:00:59]} Ref5 {[%emt 0:00:00]} 36. R4d2 {[%emt 0:01:00]} R5f6 {[%emt 0:00:00]} 37. Nc3 {[%emt 0:00:57]} Ke8 {[%emt 0:00:00]} 38. Rf1 {[%emt 0:00:50]} Kf8 {[%emt 0:00:00]} 39. Rd4 {[%emt 0:00:10]} Re6 {[%emt 0:00:00]} 40. Rfd1 {[%emt 0:00:13]} Kg7 {[%emt 0:00:00]} 41. R4d2 {[%emt 2:01:09]} Ref6 {[%emt 1:12:10]} 42. Rf1 {[%emt 0:00:28]} Kg6 {[%emt 0:01:18]} 43. Rd4 {[%emt 0:00:00]} Rf3 {[%emt 0:01:19]} 44. Nxe4 {[%emt 0:00:26]} Bxe4 {[%emt 0:00:00]} 45. Rxe4 {[%emt 0:00:00]} h4 {[%emt 0:00:00]} 46. Rg4 {[%emt 0:00:19]} Kh5 {[%emt 0:09:21]} 47. Kg2 {[%emt 0:00:30]} R3f5 {[%emt 0:02:00]} 48. gxh4 {[%emt 0:00:00]} gxh4 {[%emt 0:00:00]} 49. Kh2 {[%emt 0:00:00]} Rxf2+ {[%emt 0:00:00]} 50. Rxf2 {[%emt 0:00:00]} Rxf2+ {[%emt 0:00:00]} 51. Kg1 {[%emt 0:00:00]} Rf3 {[%emt 0:02:24]} 52. Re4 {[%emt 0:00:00]} Rxh3 {[%emt 0:00:49]} 53. Kg2 {[%emt 0:00:00]} Rg3+ {[%emt 0:00:00]} 54. Kh2 {[%emt 0:00:00]} Kg5 {[%emt 0:00:44]} 55. Re8 {[%emt 0:00:00]} Kf5 {[%emt 0:00:32]} 56. Rf8+ {[%emt 0:00:00]} Ke4 {[%emt 0:00:14]} 57. Rf4+ {[%emt 0:00:00]} Ke5 {[%emt 0:00:00]} 58. Rxh4 {[%emt 0:00:02]} Rxe3 {[%emt 0:00:00]} 59. Rh5+ {[%emt 0:00:00]} Kd4 {[%emt 0:02:18]} 60. Rb5 {[%emt 0:01:13]} Re5 {[%emt 0:00:00]} 0-1

[Event "Klatovy Open-B 2024"]
[Site "Klatovy"]
[Date "2024.07.03"]
[Round "5.5"]
[White "Chmelik, Ladislav"]
[Black "Kroulik, Stepan"]
[Result "1-0"]
[ECO "B43"]
[WhiteElo "1795"]
[BlackElo "1688"]
[Annotator "NA RC"]
[PlyCount "79"]
[EventDate "2024.06.21"]
[EventType "swiss"]
[EventCountry "CZE"]
[SourceTitle "playchess.com"]
[Source "ChessBase"]
[SourceQuality "1"]
[TimeControl "40/7200:0"]

1. e4 {[%emt 0:00:00]} c5 {[%emt 0:00:00]} 2. Nf3 {[%emt 0:00:00]} e6 {[%emt 0:00:00]} 3. d4 {[%emt 0:00:00]} cxd4 {[%emt 0:00:00]} 4. Nxd4 {[%emt 0:00:00]} a6 {[%emt 0:00:00]} 5. Nc3 {[%emt 0:00:00]} Qc7 {[%emt 0:00:00]} 6. Bd3 {[%emt 0:00:00]} Nf6 {[%emt 0:00:00]} 7. O-O {[%emt 0:00:00]} Be7 {[%emt 0:00:00]} 8. a3 {[%emt 0:00:41]} O-O {[%emt 0:00:00]} 9. Re1 {[%emt 0:03:52]} Nc6 {[%emt 0:00:00]} 10. Nxc6 {[%emt 0:04:00]} dxc6 {[%emt 0:00:09]} 11. Be3 {[%emt 0:04:02]} c5 {[%emt 0:01:28]} 12. Qf3 {[%emt 0:09:29]} Bd7 {[%emt 0:02:32]} 13. e5 {[%emt 0:13:14]} Bc6 {[%emt 0:05:06]} 14. Qg3 {[%emt 0:01:01]} Ne8 {[%emt 0:00:02]} 15. Bg5 {[%emt 0:24:27]} Rd8 {[%emt 0:07:03]} 16. Qh4 {[%emt 0:00:00]} Rxd3 {[%emt 0:01:37]} 17. cxd3 {[%emt 0:00:59]} Bxg5 {[%emt 0:00:00]} 18. Qxg5 {[%emt 0:00:00]} Qb6 {[%emt 0:02:02]} 19. Rab1 {[%emt 0:02:53]} f6 {[%emt 0:03:35]} 20. exf6 {[%emt 0:01:45]} Rxf6 {[%emt 0:00:00]} 21. Ne4 {[%emt 0:00:00]} Bxe4 {[%emt 0:00:00]} 22. Rxe4 {[%emt 0:01:55]} Nd6 {[%emt 0:01:05]} 23. Re2 {[%emt 0:01:23]} Nb5 {[%emt 0:03:51]} 24. Ree1 {[%emt 0:07:38]} Qc6 {[%emt 0:03:54]} 25. f3 {[%emt 0:02:58]} Nd4 {[%emt 0:01:29]} 26. Rf1 {[%emt 0:08:17]} h6 {[%emt 0:01:02]} 27. Qe3 {[%emt 0:00:57]} Rf5 {[%emt 0:09:41]} 28. b4 {[%emt 0:01:11]} Nc2 {[%emt 0:02:07]} 29. Qe4 {[%emt 0:00:24]} Qc8 {[%emt 0:00:12]} 30. bxc5 {[%emt 0:01:35]} Rxc5 {[%emt 0:00:31]} 31. Qxb7 {[%emt 0:01:28]} Nxa3 {[%emt 0:02:31]} 32. Qxc8+ {[%emt 0:00:00]} Rxc8 {[%emt 0:00:00]} 33. Rb6 {[%emt 0:01:15]} Rd8 {[%emt 0:04:33]} 34. Rd1 {[%emt 0:01:09]} a5 {[%emt 0:02:47]} 35. Rxe6 {[%emt 0:00:41]} Nc4 {[%emt 0:00:34]} 36. Re4 {[%emt 0:06:22]} Nb2 {[%emt 0:00:23]} 37. Rd2 {[%emt 0:00:00]} Rb8 {[%emt 0:00:24]} 38. Ree2 {[%emt 0:00:18]} Na4 {[%emt 0:00:04]} 39. Re5 {[%emt 0:00:22]} Nb2 {[%emt 0:01:31]} 40. Rxa5 {[%emt 0:00:01]} 1-0

[Event "Klatovy Open-B 2024"]
[Site "Klatovy"]
[Date "2024.07.03"]
[Round "5.6"]
[White "Bukvaj, Martin"]
[Black "Beran, Jakub"]
[Result "0-1"]
[ECO "D02"]
[WhiteElo "1687"]
[BlackElo "1791"]
[Annotator "NA RC"]
[PlyCount "70"]
[EventDate "2024.06.21"]
[EventType "swiss"]
[EventCountry "CZE"]
[SourceTitle "playchess.com"]
[Source "ChessBase"]
[SourceQuality "1"]
[TimeControl "40/7200:0"]

1. d4 {[%emt 0:00:26]} d5 {[%emt 0:00:00]} 2. Nf3 {[%emt 0:00:07]} Nf6 {[%emt 0:00:00]} 3. g3 {[%emt 0:00:37]} Bf5 {[%emt 0:01:00]} 4. Bg2 {[%emt 0:00:43]} e6 {[%emt 0:00:16]} 5. O-O {[%emt 0:00:27]} c5 {[%emt 0:01:11]} 6. c4 {[%emt 0:03:36]} dxc4 {[%emt 0:03:19]} 7. Qa4+ {[%emt 0:00:33]} Nc6 {[%emt 0:01:40]} 8. Ne5 {[%emt 0:02:18]} Be4 {[%emt 0:03:07]} 9. Nxc6 {[%emt 0:05:57]} Qd7 {[%emt 0:00:17]} 10. Nd2 {[%emt 0:06:54]} Bxg2 {[%emt 0:03:25]} 11. Kxg2 {[%emt 0:00:00]} cxd4 {[%emt 0:02:54]} 12. Nf3 {[%emt 0:06:03]} bxc6 {[%emt 0:07:29]} 13. Qxc4 {[%emt 0:01:00]} c5 {[%emt 0:03:13]} 14. Rd1 {[%emt 0:08:16]} Bd6 {[%emt 0:06:47]} 15. b4 {[%emt 0:12:35]} Qa4 {[%emt 0:19:11]} 16. Bb2 {[%emt 0:11:15]} O-O {[%emt 0:06:35]} 17. e3 {[%emt 0:07:28]} e5 {[%emt 0:11:14]} 18. exd4 {[%emt 0:05:21]} cxd4 {[%emt 0:04:00]} 19. a3 {[%emt 0:02:15]} Rac8 {[%emt 0:00:39]} 20. Qe2 {[%emt 0:02:02]} Rc2 {[%emt 0:03:22]} 21. Rd2 {[%emt 0:01:22]} Rfc8 {[%emt 0:01:24]} 22. Ne1 {[%emt 0:02:46]} Rxd2 {[%emt 0:01:54]} 23. Qxd2 {[%emt 0:00:00]} Qb3 {[%emt 0:02:46]} 24. Rc1 {[%emt 0:02:41]} Rxc1 {[%emt 0:01:05]} 25. Bxc1 {[%emt 0:00:00]} Qd5+ {[%emt 0:01:32]} 26. Kg1 {[%emt 0:01:55]} e4 {[%emt 0:02:43]} 27. Nc2 {[%emt 0:01:52]} Be5 {[%emt 0:00:36]} 28. Ne1 {[%emt 0:01:25]} h6 {[%emt 0:01:10]} 29. Ng2 {[%emt 0:00:56]} Qc4 {[%emt 0:01:47]} 30. Bb2 {[%emt 0:01:10]} Nd5 {[%emt 0:00:23]} 31. h4 {[%emt 0:01:25]} Nb6 {[%emt 0:02:49]} 32. Nf4 {[%emt 0:01:44]} Qa2 {[%emt 0:02:00]} 33. Bc1 {[%emt 0:01:20]} Qxd2 {[%emt 0:00:13]} 34. Bxd2 {[%emt 0:00:29]} Nc4 {[%emt 0:00:00]} 35. Bc1 {[%emt 0:00:00]} d3 {[%emt 0:00:00]} 0-1

[Event "Klatovy Open-B 2024"]
[Site "Klatovy"]
[Date "2024.07.03"]
[Round "5.7"]
[White "Koupil, Stepan"]
[Black "Svejdar, Pavel"]
[Result "1/2-1/2"]
[ECO "C01"]
[WhiteElo "1685"]
[BlackElo "1721"]
[Annotator "NA RC"]
[PlyCount "85"]
[EventDate "2024.06.21"]
[EventType "swiss"]
[EventCountry "CZE"]
[SourceTitle "playchess.com"]
[Source "ChessBase"]
[SourceQuality "1"]
[TimeControl "40/7200:0"]

1. e4 {[%emt 0:00:00]} e6 {[%emt 0:00:00]} 2. d4 {[%emt 0:00:00]} d5 {[%emt 0:00:00]} 3. exd5 {[%emt 0:00:00]} exd5 {[%emt 0:00:00]} 4. Bd3 {[%emt 0:00:00]} Bd6 {[%emt 0:00:00]} 5. h3 {[%emt 0:00:00]} h6 {[%emt 0:00:00]} 6. Nf3 {[%emt 0:00:00]} Nf6 {[%emt 0:00:52]} 7. O-O {[%emt 0:00:00]} O-O {[%emt 0:00:00]} 8. Nbd2 {[%emt 0:00:00]} Nc6 {[%emt 0:04:18]} 9. Re1 {[%emt 0:00:00]} Nb4 {[%emt 0:03:59]} 10. Ne5 {[%emt 0:01:04]} Nxd3 {[%emt 0:01:31]} 11. Nxd3 {[%emt 0:00:00]} Bf5 {[%emt 0:05:46]} 12. Nf1 {[%emt 0:03:46]} Ne4 {[%emt 0:03:16]} 13. Bf4 {[%emt 0:02:39]} Be7 {[%emt 0:08:27]} 14. Ng3 {[%emt 0:07:58]} Nxg3 {[%emt 0:04:28]} 15. Bxg3 {[%emt 0:01:53]} Bf6 {[%emt 0:07:55]} 16. c3 {[%emt 0:06:05]} c6 {[%emt 0:04:22]} 17. Nc5 {[%emt 0:08:29]} Qc8 {[%emt 0:04:45]} 18. Qd2 {[%emt 0:06:04]} b6 {[%emt 0:00:07]} 19. Nd3 {[%emt 0:00:11]} Be4 {[%emt 0:02:14]} 20. f3 {[%emt 0:01:47]} Bf5 {[%emt 0:01:57]} 21. Bd6 {[%emt 0:00:57]} Rd8 {[%emt 0:04:40]} 22. Be7 {[%emt 0:01:11]} Bxe7 {[%emt 0:02:51]} 23. Rxe7 {[%emt 0:00:00]} Be6 {[%emt 0:00:38]} 24. Qf4 {[%emt 0:03:31]} Rd7 {[%emt 0:02:52]} 25. Rxd7 {[%emt 0:01:18]} Qxd7 {[%emt 0:00:00]} 26. Ne5 {[%emt 0:00:00]} Qc7 {[%emt 0:01:53]} 27. Kf2 {[%emt 0:03:35]} a5 {[%emt 0:00:49]} 28. Re1 {[%emt 0:00:41]} Re8 {[%emt 0:04:26]} 29. g4 {[%emt 0:04:09]} c5 {[%emt 0:01:18]} 30. Rg1 {[%emt 0:18:31]} f6 {[%emt 0:09:21]} 31. Nd3 {[%emt 0:01:03]} Qxf4 {[%emt 0:00:19]} 32. Nxf4 {[%emt 0:00:00]} Kf7 {[%emt 0:00:00]} 33. Re1 {[%emt 0:00:00]} g5 {[%emt 0:02:14]} 34. Ng2 {[%emt 0:00:32]} cxd4 {[%emt 0:02:36]} 35. cxd4 {[%emt 0:01:57]} Rc8 {[%emt 0:00:05]} 36. Ne3 {[%emt 0:00:23]} b5 {[%emt 0:01:46]} 37. Ke2 {[%emt 0:02:31]} Ke7 {[%emt 0:00:00]} 38. Kd3 {[%emt 0:00:02]} Kd6 {[%emt 0:00:00]} 39. Nf5+ {[%emt 0:01:36]} Bxf5+ {[%emt 0:00:00]} 40. gxf5 {[%emt 0:00:00]} Kd7 {[%emt 0:00:00]} 41. b3 {[%emt 2:00:33]} b4 {[%emt 1:59:32]} 42. Rf1 {[%emt 0:02:31]} Ra8 {[%emt 0:04:22]} 43. Rc1 {[%emt 0:02:09]} 1/2-1/2

[Event "Klatovy Open-B 2024"]
[Site "Klatovy"]
[Date "2024.07.03"]
[Round "5.9"]
[White "Bukvaj, Jan"]
[Black "Martinek, Lukas"]
[Result "1-0"]
[ECO "E86"]
[WhiteElo "1652"]
[BlackElo "1698"]
[Annotator "NA RC"]
[PlyCount "87"]
[EventDate "2024.06.21"]
[EventType "swiss"]
[EventCountry "CZE"]
[SourceTitle "playchess.com"]
[Source "ChessBase"]
[SourceQuality "1"]
[TimeControl "40/7200:0"]

1. c4 {[%emt 0:00:00]} Nf6 {[%emt 0:00:00]} 2. Nc3 {[%emt 0:00:00]} d6 {[%emt 0:00:40]} 3. d4 {[%emt 0:00:00]} g6 {[%emt 0:00:53]} 4. e4 {[%emt 0:00:00]} Bg7 {[%emt 0:00:31]} 5. f3 {[%emt 0:00:00]} O-O {[%emt 0:01:23]} 6. Be3 {[%emt 0:00:00]} c6 {[%emt 0:09:43]} 7. Nge2 {[%emt 0:00:36]} Nbd7 {[%emt 0:04:58]} 8. Qd2 {[%emt 0:01:43]} e5 {[%emt 0:00:55]} 9. O-O-O {[%emt 0:11:39]} Qa5 {[%emt 0:04:48]} 10. Kb1 {[%emt 0:07:29]} b5 {[%emt 0:03:26]} 11. cxb5 {[%emt 0:04:57]} cxb5 {[%emt 0:00:44]} 12. Nc1 {[%emt 0:08:57]} b4 {[%emt 0:05:41]} 13. Nb5 {[%emt 0:08:12]} Rd8 {[%emt 0:04:15]} 14. Nb3 {[%emt 0:05:45]} Qa4 {[%emt 0:00:00]} 15. Nxd6 {[%emt 0:01:55]} Ba6 {[%emt 0:08:47]} 16. Nc5 {[%emt 0:17:45]} Nxc5 {[%emt 0:01:44]} 17. dxc5 {[%emt 0:00:00]} Bxf1 {[%emt 0:00:52]} 18. Rhxf1 {[%emt 0:00:00]} Ne8 {[%emt 0:01:33]} 19. Qd5 {[%emt 0:06:06]} Nxd6 {[%emt 0:04:14]} 20. cxd6 {[%emt 0:00:37]} a5 {[%emt 0:02:41]} 21. Bb6 {[%emt 0:04:34]} Rf8 {[%emt 0:10:48]} 22. d7 {[%emt 0:01:42]} Bf6 {[%emt 0:00:54]} 23. d8=Q {[%emt 0:04:58]} Bxd8 {[%emt 0:00:07]} 24. Qxa8 {[%emt 0:00:01]} Bxb6 {[%emt 0:00:13]} 25. Qd5 {[%emt 0:02:31]} Bd4 {[%emt 0:00:11]} 26. Qb3 {[%emt 0:00:37]} Qb5 {[%emt 0:00:59]} 27. a4 {[%emt 0:04:01]} Qe2 {[%emt 0:02:41]} 28. Qc2 {[%emt 0:01:48]} Qe3 {[%emt 0:01:05]} 29. Rde1 {[%emt 0:03:10]} Qf4 {[%emt 0:00:43]} 30. g3 {[%emt 0:00:26]} Qf6 {[%emt 0:01:08]} 31. f4 {[%emt 0:00:57]} Qe6 {[%emt 0:01:21]} 32. Rf3 {[%emt 0:07:01]} Rc8 {[%emt 0:03:48]} 33. Qb3 {[%emt 0:00:00]} Qh3 {[%emt 0:01:03]} 34. fxe5 {[%emt 0:00:20]} Qxh2 {[%emt 0:00:25]} 35. Qxf7+ {[%emt 0:00:00]} Kh8 {[%emt 0:00:00]} 36. Qf6+ {[%emt 0:00:00]} Kg8 {[%emt 0:00:00]} 37. Qe6+ {[%emt 0:00:00]} Kg7 {[%emt 0:00:00]} 38. Qd7+ {[%emt 0:01:35]} Kh6 {[%emt 0:00:00]} 39. Qxd4 {[%emt 0:00:47]} Qc2+ {[%emt 0:00:17]} 40. Ka1 {[%emt 0:00:00]} Qxa4+ {[%emt 0:01:33]} 41. Ra3 {[%emt 2:00:51]} Qb5 {[%emt 2:00:23]} 42. Rh1+ {[%emt 0:00:27]} Kg7 {[%emt 0:00:01]} 43. e6+ {[%emt 0:00:00]} Kg8 {[%emt 0:00:39]} 44. Qd7 {[%emt 0:01:08]} 1-0

[Event "Klatovy Open-B 2024"]
[Site "Klatovy"]
[Date "2024.07.03"]
[Round "5.10"]
[White "Kusova, Nikola"]
[Black "Babicky, Jan"]
[Result "1-0"]
[ECO "C15"]
[WhiteElo "1696"]
[BlackElo "1542"]
[Annotator "NA RC"]
[PlyCount "57"]
[EventDate "2024.06.21"]
[EventType "swiss"]
[EventCountry "CZE"]
[SourceTitle "playchess.com"]
[Source "ChessBase"]
[SourceQuality "1"]
[TimeControl "40/7200:0"]

1. e4 {[%emt 0:00:00]} e6 {[%emt 0:00:00]} 2. d4 {[%emt 0:00:00]} d5 {[%emt 0:00:00]} 3. Nc3 {[%emt 0:00:00]} Bb4 {[%emt 0:00:00]} 4. Nge2 {[%emt 0:00:00]} dxe4 {[%emt 0:00:00]} 5. a3 {[%emt 0:00:00]} Bxc3+ {[%emt 0:00:08]} 6. Nxc3 {[%emt 0:00:00]} Nf6 {[%emt 0:00:04]} 7. Bg5 {[%emt 0:00:00]} O-O {[%emt 0:02:33]} 8. Nxe4 {[%emt 0:00:00]} Nbd7 {[%emt 0:00:00]} 9. Bd3 {[%emt 0:02:32]} c6 {[%emt 0:00:18]} 10. O-O {[%emt 0:01:32]} h6 {[%emt 0:00:01]} 11. Bh4 {[%emt 0:02:53]} g5 {[%emt 0:05:06]} 12. Nxf6+ {[%emt 0:06:54]} Nxf6 {[%emt 0:04:41]} 13. Bg3 {[%emt 0:00:00]} Qe7 {[%emt 0:18:00]} 14. f4 {[%emt 0:05:54]} Nh7 {[%emt 0:12:00]} 15. Qh5 {[%emt 0:03:35]} Qf6 {[%emt 0:03:09]} 16. c3 {[%emt 0:03:32]} Qg7 {[%emt 0:02:49]} 17. Bxh7+ {[%emt 1:33:08]} Kxh7 {[%emt 0:01:55]} 18. fxg5 {[%emt 0:00:00]} Qxg5 {[%emt 0:00:56]} 19. Rxf7+ {[%emt 0:00:00]} Rxf7 {[%emt 0:00:00]} 20. Qxf7+ {[%emt 0:00:00]} Qg7 {[%emt 0:00:00]} 21. Qxg7+ {[%emt 0:00:00]} Kxg7 {[%emt 0:00:00]} 22. Rf1 {[%emt 0:00:00]} Bd7 {[%emt 0:00:00]} 23. Be5+ {[%emt 0:00:00]} Kg6 {[%emt 0:00:44]} 24. Rf6+ {[%emt 0:00:00]} Kg5 {[%emt 0:00:00]} 25. Rf7 {[%emt 0:00:00]} Bc8 {[%emt 0:00:00]} 26. Rg7+ {[%emt 0:00:00]} Kf5 {[%emt 0:00:00]} 27. Kf2 {[%emt 0:00:00]} b6 {[%emt 0:00:00]} 28. Ke3 {[%emt 0:00:00]} Ba6 {[%emt 0:00:19]} 29. g4# {[%emt 0:00:00]} 1-0

[Event "Klatovy Open-B 2024"]
[Site "Klatovy"]
[Date "2024.07.03"]
[Round "5.11"]
[White "Mojzisova, Barbora"]
[Black "Sova, Zdenek"]
[Result "1/2-1/2"]
[ECO "B84"]
[WhiteElo "1535"]
[BlackElo "1822"]
[Annotator "NA RC"]
[PlyCount "46"]
[EventDate "2024.06.21"]
[EventType "swiss"]
[EventCountry "CZE"]
[SourceTitle "playchess.com"]
[Source "ChessBase"]
[SourceQuality "1"]
[TimeControl "40/7200:0"]

1. e4 {[%emt 0:00:00]} c5 {[%emt 0:00:00]} 2. Nf3 {[%emt 0:00:00]} e6 {[%emt 0:00:00]} 3. d4 {[%emt 0:00:00]} cxd4 {[%emt 0:00:00]} 4. Nxd4 {[%emt 0:00:00]} a6 {[%emt 0:00:00]} 5. Nc3 {[%emt 0:00:00]} Qc7 {[%emt 0:00:00]} 6. Be2 {[%emt 0:00:54]} Nf6 {[%emt 0:00:00]} 7. Be3 {[%emt 0:02:32]} d6 {[%emt 0:00:00]} 8. O-O {[%emt 0:01:11]} Be7 {[%emt 0:00:00]} 9. Kh1 {[%emt 0:01:23]} O-O {[%emt 0:00:00]} 10. f3 {[%emt 0:02:27]} Bd7 {[%emt 0:06:18]} 11. Qe1 {[%emt 0:04:20]} Nc6 {[%emt 0:01:40]} 12. Qf2 {[%emt 0:02:14]} Ne5 {[%emt 0:07:44]} 13. Nb3 {[%emt 0:04:21]} Bd8 {[%emt 0:02:58]} 14. Rfd1 {[%emt 0:01:59]} b5 {[%emt 0:02:45]} 15. Bd3 {[%emt 0:01:32]} Bc6 {[%emt 0:03:00]} 16. a3 {[%emt 0:08:45]} Rc8 {[%emt 0:04:29]} 17. Rac1 {[%emt 0:01:53]} Bb7 {[%emt 0:02:01]} 18. h3 {[%emt 0:06:32]} Ned7 {[%emt 0:15:04]} 19. Be2 {[%emt 0:04:22]} Be7 {[%emt 0:00:15]} 20. Bf4 {[%emt 0:04:24]} e5 {[%emt 0:03:57]} 21. Be3 {[%emt 0:00:54]} h6 {[%emt 0:03:47]} 22. Bf1 {[%emt 0:01:25]} Nc5 {[%emt 0:03:51]} 23. Be2 {[%emt 0:05:20]} Ncd7 {[%emt 0:03:50]} 1/2-1/2

[Event "Klatovy Open-B 2024"]
[Site "Klatovy"]
[Date "2024.07.03"]
[Round "5.12"]
[White "Stastny, Matej"]
[Black "Rezac, Jindrich"]
[Result "1-0"]
[ECO "B01"]
[WhiteElo "1674"]
[BlackElo "1875"]
[Annotator "NA RC"]
[PlyCount "57"]
[EventDate "2024.06.21"]
[EventType "swiss"]
[EventCountry "CZE"]
[SourceTitle "playchess.com"]
[Source "ChessBase"]
[SourceQuality "1"]
[TimeControl "40/7200:0"]

1. e4 {[%emt 0:00:00]} d5 {[%emt 0:00:42]} 2. exd5 {[%emt 0:00:00]} Qxd5 {[%emt 0:00:00]} 3. Nc3 {[%emt 0:00:00]} Qa5 {[%emt 0:00:00]} 4. d4 {[%emt 0:00:00]} Nf6 {[%emt 0:00:00]} 5. Nf3 {[%emt 0:00:00]} c6 {[%emt 0:00:00]} 6. Bd2 {[%emt 0:00:00]} Qc7 {[%emt 0:00:00]} 7. Bc4 {[%emt 0:00:00]} Bf5 {[%emt 0:00:04]} 8. Nh4 {[%emt 0:06:44]} Bg4 {[%emt 0:05:58]} 9. f3 {[%emt 0:03:28]} Bh5 {[%emt 0:02:23]} 10. g4 {[%emt 0:00:59]} Bg6 {[%emt 0:00:00]} 11. Nxg6 {[%emt 0:00:14]} hxg6 {[%emt 0:00:00]} 12. Qe2 {[%emt 0:00:24]} e6 {[%emt 0:06:17]} 13. O-O-O {[%emt 0:01:11]} Nbd7 {[%emt 0:07:00]} 14. g5 {[%emt 0:02:21]} Ng8 {[%emt 0:09:03]} 15. d5 {[%emt 0:07:57]} e5 {[%emt 0:21:03]} 16. dxc6 {[%emt 0:03:36]} bxc6 {[%emt 0:00:06]} 17. f4 {[%emt 0:03:27]} f6 {[%emt 0:04:34]} 18. fxe5 {[%emt 0:08:40]} Nxe5 {[%emt 0:04:57]} 19. Bf4 {[%emt 0:05:31]} Bd6 {[%emt 0:03:20]} 20. Qe4 {[%emt 0:14:08]} O-O-O {[%emt 0:10:46]} 21. Bxe5 {[%emt 0:10:48]} Bxe5 {[%emt 0:05:05]} 22. Ba6+ {[%emt 0:02:15]} Kb8 {[%emt 0:00:39]} 23. Qb4+ {[%emt 0:01:01]} Qb6 {[%emt 0:01:09]} 24. Rxd8+ {[%emt 0:00:11]} Kc7 {[%emt 0:00:00]} 25. Rc8+ {[%emt 0:07:07]} Kd7 {[%emt 0:00:00]} 26. Rd1+ {[%emt 0:00:00]} Ke6 {[%emt 0:00:00]} 27. Re8+ {[%emt 0:02:21]} Kf5 {[%emt 0:00:09]} 28. Bc8+ {[%emt 0:03:44]} Kxg5 {[%emt 0:00:00]} 29. Qg4+ {[%emt 0:00:00]} 1-0